{"text_format":"1","workbook":"xlsx","n_sheets":4,"sheets":["INF_CARRERA","TAB_CARRERA","TD_CARRERA","DAT_CARRERA"],"not_rendered":{"charts":1,"images":1,"macros":1,"external_links":0,"defined_names":20,"comments":0,"pivot_tables":2},"unopened":[],"bounds":{"document_bytes":16777216,"sheet_cells":100000,"rows_first":2000,"rows_last":500,"rows_between":2000,"halvings":0,"cell_chars":16384,"cell_head_chars":4096},"cells_cut":0,"cells_raw":0,"read":"whole","date_system":"1900"}

{"sheet":"INF_CARRERA","index":0,"n_rows":38,"n_cols":5,"rows_kept":38,"cut":false,"hidden":false,"merged":[[36,1,36,7],[37,1,37,7],[0,0,3,1]]}
["Mi Carrera Profesional"]
[null,null,null,null,"Fechas"]
[null,null,null,null,"Días"]
[]
[]
[]
[]
[]
[]
[]
[]
[]
[]
[]
[]
[]
[]
[]
[]
[]
[]
[]
[]
[]
[]
[]
[]
[]
[]
[]
[]
[]
[]
[]
[]
[]
["   BLOG","https://pedrowave.blogspot.com/"]
["   COPYRIGHT","https://creativecommons.org/licenses/by-nc-sa/3.0/deed.en"]

{"sheet":"TAB_CARRERA","index":1,"n_rows":54,"n_cols":9,"rows_kept":54,"cut":false,"hidden":false,"merged":[]}
[]
[null,{"$f":"MATCH(Range_Field,Range_Fields,0)","v":5},{"$f":"MATCH(TableCareer[[#Headers],[Fecha Inicio]],Range_Fields,0)","v":1},null,{"$f":"MATCH(TableCareer[[#Headers],[Fecha Fin]],Range_Fields,0)","v":2}]
[]
[null,"Valor","Fecha Inicio","Días","Fecha Fin","Fila",null,"Fecha Jubilación","17-07-2020"]
[null,{"$f":"IFERROR(INDEX(Range_PT_Career,TableCareer[[#This Row],[Fila]],B$2) & IF(AND(TableCareer[[#This Row],[Fecha Inicio]]>0,Range_Visible_Dates=\"a\"),\", \" & TEXT(TableCareer[[#This Row],[Fecha Fin]],Range_Date_Format),\"\"),\"\")","v":"IBM"},{"$f":"IFERROR(INDEX(Range_PT_Career,TableCareer[[#This Row],[Fila]],C$2),0)","v":"2019-08-26"},{"$f":"IFERROR(TableCareer[[#This Row],[Fecha Fin]]-TableCareer[[#This Row],[Fecha Inicio]],0)","v":268},{"$f":"IFERROR(INDEX(Range_PT_Career,TableCareer[[#This Row],[Fila]],E$2),0)","v":"2020-05-20"},1,null,"Min Año",{"$f":"YEAR(MIN(IF(TableCareer[Fecha Inicio]=0,100000,TableCareer[Fecha Inicio])))","v":1975}]
[null,{"$f":"IFERROR(INDEX(Range_PT_Career,TableCareer[[#This Row],[Fila]],B$2) & IF(AND(TableCareer[[#This Row],[Fecha Inicio]]>0,Range_Visible_Dates=\"a\"),\", \" & TEXT(TableCareer[[#This Row],[Fecha Fin]],Range_Date_Format),\"\"),\"\")","v":"IBM"},{"$f":"IFERROR(INDEX(Range_PT_Career,TableCareer[[#This Row],[Fila]],C$2),0)","v":"2018-06-27"},{"$f":"IFERROR(TableCareer[[#This Row],[Fecha Fin]]-TableCareer[[#This Row],[Fecha Inicio]],0)","v":424},{"$f":"IFERROR(INDEX(Range_PT_Career,TableCareer[[#This Row],[Fila]],E$2),0)","v":"2019-08-25"},{"$f":"F5+1","v":2},null,"Max Año",{"$f":"YEAR(MAX(TableCareer[Fecha Inicio]))","v":2019}]
[null,{"$f":"IFERROR(INDEX(Range_PT_Career,TableCareer[[#This Row],[Fila]],B$2) & IF(AND(TableCareer[[#This Row],[Fecha Inicio]]>0,Range_Visible_Dates=\"a\"),\", \" & TEXT(TableCareer[[#This Row],[Fecha Fin]],Range_Date_Format),\"\"),\"\")","v":"INDRA SISTEMAS"},{"$f":"IFERROR(INDEX(Range_PT_Career,TableCareer[[#This Row],[Fila]],C$2),0)","v":"2015-03-09"},{"$f":"IFERROR(TableCareer[[#This Row],[Fecha Fin]]-TableCareer[[#This Row],[Fecha Inicio]],0)","v":1198},{"$f":"IFERROR(INDEX(Range_PT_Career,TableCareer[[#This Row],[Fila]],E$2),0)","v":"2018-06-19"},3,null,"Formato Año",{"$f":"RIGHT(Range_Date_Format,4)","v":"aaaa"}]
[null,{"$f":"IFERROR(INDEX(Range_PT_Career,TableCareer[[#This Row],[Fila]],B$2) & IF(AND(TableCareer[[#This Row],[Fecha Inicio]]>0,Range_Visible_Dates=\"a\"),\", \" & TEXT(TableCareer[[#This Row],[Fecha Fin]],Range_Date_Format),\"\"),\"\")","v":"EXPERIS"},{"$f":"IFERROR(INDEX(Range_PT_Career,TableCareer[[#This Row],[Fila]],C$2),0)","v":"2015-03-09"},{"$f":"IFERROR(TableCareer[[#This Row],[Fecha Fin]]-TableCareer[[#This Row],[Fecha Inicio]],0)","v":1957},{"$f":"IFERROR(INDEX(Range_PT_Career,TableCareer[[#This Row],[Fila]],E$2),0)","v":"2020-07-17"},4,null,"Formato Fechas",{"$f":"DATE_FORMAT(I4)","v":"dd/mm/aaaa"}]
[null,{"$f":"IFERROR(INDEX(Range_PT_Career,TableCareer[[#This Row],[Fila]],B$2) & IF(AND(TableCareer[[#This Row],[Fecha Inicio]]>0,Range_Visible_Dates=\"a\"),\", \" & TEXT(TableCareer[[#This Row],[Fecha Fin]],Range_Date_Format),\"\"),\"\")","v":"ACADEMIA ADAMS"},{"$f":"IFERROR(INDEX(Range_PT_Career,TableCareer[[#This Row],[Fila]],C$2),0)","v":"2015-01-01"},{"$f":"IFERROR(TableCareer[[#This Row],[Fecha Fin]]-TableCareer[[#This Row],[Fecha Inicio]],0)","v":66},{"$f":"IFERROR(INDEX(Range_PT_Career,TableCareer[[#This Row],[Fila]],E$2),0)","v":"2015-03-08"},5]
[null,{"$f":"IFERROR(INDEX(Range_PT_Career,TableCareer[[#This Row],[Fila]],B$2) & IF(AND(TableCareer[[#This Row],[Fecha Inicio]]>0,Range_Visible_Dates=\"a\"),\", \" & TEXT(TableCareer[[#This Row],[Fecha Fin]],Range_Date_Format),\"\"),\"\")","v":"ALTEN"},{"$f":"IFERROR(INDEX(Range_PT_Career,TableCareer[[#This Row],[Fila]],C$2),0)","v":"2013-09-30"},{"$f":"IFERROR(TableCareer[[#This Row],[Fecha Fin]]-TableCareer[[#This Row],[Fecha Inicio]],0)","v":385},{"$f":"IFERROR(INDEX(Range_PT_Career,TableCareer[[#This Row],[Fila]],E$2),0)","v":"2014-10-20"},6]
[null,{"$f":"IFERROR(INDEX(Range_PT_Career,TableCareer[[#This Row],[Fila]],B$2) & IF(AND(TableCareer[[#This Row],[Fecha Inicio]]>0,Range_Visible_Dates=\"a\"),\", \" & TEXT(TableCareer[[#This Row],[Fecha Fin]],Range_Date_Format),\"\"),\"\")","v":"EVERIS"},{"$f":"IFERROR(INDEX(Range_PT_Career,TableCareer[[#This Row],[Fila]],C$2),0)","v":"2013-03-19"},{"$f":"IFERROR(TableCareer[[#This Row],[Fecha Fin]]-TableCareer[[#This Row],[Fecha Inicio]],0)","v":73},{"$f":"IFERROR(INDEX(Range_PT_Career,TableCareer[[#This Row],[Fila]],E$2),0)","v":"2013-05-31"},7]
[null,{"$f":"IFERROR(INDEX(Range_PT_Career,TableCareer[[#This Row],[Fila]],B$2) & IF(AND(TableCareer[[#This Row],[Fecha Inicio]]>0,Range_Visible_Dates=\"a\"),\", \" & TEXT(TableCareer[[#This Row],[Fecha Fin]],Range_Date_Format),\"\"),\"\")","v":"INDRA SOFTWARE LABS"},{"$f":"IFERROR(INDEX(Range_PT_Career,TableCareer[[#This Row],[Fila]],C$2),0)","v":"2011-07-01"},{"$f":"IFERROR(TableCareer[[#This Row],[Fecha Fin]]-TableCareer[[#This Row],[Fecha Inicio]],0)","v":588},{"$f":"IFERROR(INDEX(Range_PT_Career,TableCareer[[#This Row],[Fila]],E$2),0)","v":"2013-02-08"},8]
[null,{"$f":"IFERROR(INDEX(Range_PT_Career,TableCareer[[#This Row],[Fila]],B$2) & IF(AND(TableCareer[[#This Row],[Fecha Inicio]]>0,Range_Visible_Dates=\"a\"),\", \" & TEXT(TableCareer[[#This Row],[Fecha Fin]],Range_Date_Format),\"\"),\"\")","v":"IBERTECH"},{"$f":"IFERROR(INDEX(Range_PT_Career,TableCareer[[#This Row],[Fila]],C$2),0)","v":"2011-07-01"},{"$f":"IFERROR(TableCareer[[#This Row],[Fecha Fin]]-TableCareer[[#This Row],[Fecha Inicio]],0)","v":706},{"$f":"IFERROR(INDEX(Range_PT_Career,TableCareer[[#This Row],[Fila]],E$2),0)","v":"2013-06-06"},9]
[null,{"$f":"IFERROR(INDEX(Range_PT_Career,TableCareer[[#This Row],[Fila]],B$2) & IF(AND(TableCareer[[#This Row],[Fecha Inicio]]>0,Range_Visible_Dates=\"a\"),\", \" & TEXT(TableCareer[[#This Row],[Fecha Fin]],Range_Date_Format),\"\"),\"\")","v":"ACADEMIA SINDICAL"},{"$f":"IFERROR(INDEX(Range_PT_Career,TableCareer[[#This Row],[Fila]],C$2),0)","v":"2010-10-01"},{"$f":"IFERROR(TableCareer[[#This Row],[Fecha Fin]]-TableCareer[[#This Row],[Fecha Inicio]],0)","v":60},{"$f":"IFERROR(INDEX(Range_PT_Career,TableCareer[[#This Row],[Fila]],E$2),0)","v":"2010-11-30"},10]
[null,{"$f":"IFERROR(INDEX(Range_PT_Career,TableCareer[[#This Row],[Fila]],B$2) & IF(AND(TableCareer[[#This Row],[Fecha Inicio]]>0,Range_Visible_Dates=\"a\"),\", \" & TEXT(TableCareer[[#This Row],[Fecha Fin]],Range_Date_Format),\"\"),\"\")","v":"MI PROPIO BLOG DE EXCEL"},{"$f":"IFERROR(INDEX(Range_PT_Career,TableCareer[[#This Row],[Fila]],C$2),0)","v":"2010-03-09"},{"$f":"IFERROR(TableCareer[[#This Row],[Fecha Fin]]-TableCareer[[#This Row],[Fecha Inicio]],0)","v":4254},{"$f":"IFERROR(INDEX(Range_PT_Career,TableCareer[[#This Row],[Fila]],E$2),0)","v":"2021-10-31"},11]
[null,{"$f":"IFERROR(INDEX(Range_PT_Career,TableCareer[[#This Row],[Fila]],B$2) & IF(AND(TableCareer[[#This Row],[Fecha Inicio]]>0,Range_Visible_Dates=\"a\"),\", \" & TEXT(TableCareer[[#This Row],[Fecha Fin]],Range_Date_Format),\"\"),\"\")","v":"RADE TECNOLOGIAS"},{"$f":"IFERROR(INDEX(Range_PT_Career,TableCareer[[#This Row],[Fila]],C$2),0)","v":"2009-05-19"},{"$f":"IFERROR(TableCareer[[#This Row],[Fecha Fin]]-TableCareer[[#This Row],[Fecha Inicio]],0)","v":290},{"$f":"IFERROR(INDEX(Range_PT_Career,TableCareer[[#This Row],[Fila]],E$2),0)","v":"2010-03-05"},12]
[null,{"$f":"IFERROR(INDEX(Range_PT_Career,TableCareer[[#This Row],[Fila]],B$2) & IF(AND(TableCareer[[#This Row],[Fecha Inicio]]>0,Range_Visible_Dates=\"a\"),\", \" & TEXT(TableCareer[[#This Row],[Fecha Fin]],Range_Date_Format),\"\"),\"\")","v":"SDS"},{"$f":"IFERROR(INDEX(Range_PT_Career,TableCareer[[#This Row],[Fila]],C$2),0)","v":"2009-01-02"},{"$f":"IFERROR(TableCareer[[#This Row],[Fecha Fin]]-TableCareer[[#This Row],[Fecha Inicio]],0)","v":32},{"$f":"IFERROR(INDEX(Range_PT_Career,TableCareer[[#This Row],[Fila]],E$2),0)","v":"2009-02-03"},13]
[null,{"$f":"IFERROR(INDEX(Range_PT_Career,TableCareer[[#This Row],[Fila]],B$2) & IF(AND(TableCareer[[#This Row],[Fecha Inicio]]>0,Range_Visible_Dates=\"a\"),\", \" & TEXT(TableCareer[[#This Row],[Fecha Fin]],Range_Date_Format),\"\"),\"\")","v":"ACADEMIA ADAMS"},{"$f":"IFERROR(INDEX(Range_PT_Career,TableCareer[[#This Row],[Fila]],C$2),0)","v":"2008-09-01"},{"$f":"IFERROR(TableCareer[[#This Row],[Fecha Fin]]-TableCareer[[#This Row],[Fecha Inicio]],0)","v":211},{"$f":"IFERROR(INDEX(Range_PT_Career,TableCareer[[#This Row],[Fila]],E$2),0)","v":"2009-03-31"},14]
[null,{"$f":"IFERROR(INDEX(Range_PT_Career,TableCareer[[#This Row],[Fila]],B$2) & IF(AND(TableCareer[[#This Row],[Fecha Inicio]]>0,Range_Visible_Dates=\"a\"),\", \" & TEXT(TableCareer[[#This Row],[Fecha Fin]],Range_Date_Format),\"\"),\"\")","v":"SIEMENS ELASA"},{"$f":"IFERROR(INDEX(Range_PT_Career,TableCareer[[#This Row],[Fila]],C$2),0)","v":"1997-01-01"},{"$f":"IFERROR(TableCareer[[#This Row],[Fecha Fin]]-TableCareer[[#This Row],[Fecha Inicio]],0)","v":4073},{"$f":"IFERROR(INDEX(Range_PT_Career,TableCareer[[#This Row],[Fila]],E$2),0)","v":"2008-02-26"},15]
[null,{"$f":"IFERROR(INDEX(Range_PT_Career,TableCareer[[#This Row],[Fila]],B$2) & IF(AND(TableCareer[[#This Row],[Fecha Inicio]]>0,Range_Visible_Dates=\"a\"),\", \" & TEXT(TableCareer[[#This Row],[Fecha Fin]],Range_Date_Format),\"\"),\"\")","v":"AMPER ELASA"},{"$f":"IFERROR(INDEX(Range_PT_Career,TableCareer[[#This Row],[Fila]],C$2),0)","v":"1987-01-01"},{"$f":"IFERROR(TableCareer[[#This Row],[Fecha Fin]]-TableCareer[[#This Row],[Fecha Inicio]],0)","v":3652},{"$f":"IFERROR(INDEX(Range_PT_Career,TableCareer[[#This Row],[Fila]],E$2),0)","v":"1996-12-31"},16]
[null,{"$f":"IFERROR(INDEX(Range_PT_Career,TableCareer[[#This Row],[Fila]],B$2) & IF(AND(TableCareer[[#This Row],[Fecha Inicio]]>0,Range_Visible_Dates=\"a\"),\", \" & TEXT(TableCareer[[#This Row],[Fecha Fin]],Range_Date_Format),\"\"),\"\")","v":"ELECTRÓNICA ARAGONESA"},{"$f":"IFERROR(INDEX(Range_PT_Career,TableCareer[[#This Row],[Fila]],C$2),0)","v":"1984-12-26"},{"$f":"IFERROR(TableCareer[[#This Row],[Fecha Fin]]-TableCareer[[#This Row],[Fecha Inicio]],0)","v":735},{"$f":"IFERROR(INDEX(Range_PT_Career,TableCareer[[#This Row],[Fila]],E$2),0)","v":"1986-12-31"},17]
[null,{"$f":"IFERROR(INDEX(Range_PT_Career,TableCareer[[#This Row],[Fila]],B$2) & IF(AND(TableCareer[[#This Row],[Fecha Inicio]]>0,Range_Visible_Dates=\"a\"),\", \" & TEXT(TableCareer[[#This Row],[Fecha Fin]],Range_Date_Format),\"\"),\"\")","v":"SFS"},{"$f":"IFERROR(INDEX(Range_PT_Career,TableCareer[[#This Row],[Fila]],C$2),0)","v":"1983-06-13"},{"$f":"IFERROR(TableCareer[[#This Row],[Fecha Fin]]-TableCareer[[#This Row],[Fecha Inicio]],0)","v":558},{"$f":"IFERROR(INDEX(Range_PT_Career,TableCareer[[#This Row],[Fila]],E$2),0)","v":"1984-12-22"},18]
[null,{"$f":"IFERROR(INDEX(Range_PT_Career,TableCareer[[#This Row],[Fila]],B$2) & IF(AND(TableCareer[[#This Row],[Fecha Inicio]]>0,Range_Visible_Dates=\"a\"),\", \" & TEXT(TableCareer[[#This Row],[Fecha Fin]],Range_Date_Format),\"\"),\"\")","v":"CATRASTO DE ZARAGOZA"},{"$f":"IFERROR(INDEX(Range_PT_Career,TableCareer[[#This Row],[Fila]],C$2),0)","v":"1983-05-01"},{"$f":"IFERROR(TableCareer[[#This Row],[Fecha Fin]]-TableCareer[[#This Row],[Fecha Inicio]],0)","v":31},{"$f":"IFERROR(INDEX(Range_PT_Career,TableCareer[[#This Row],[Fila]],E$2),0)","v":"1983-06-01"},19]
[null,{"$f":"IFERROR(INDEX(Range_PT_Career,TableCareer[[#This Row],[Fila]],B$2) & IF(AND(TableCareer[[#This Row],[Fecha Inicio]]>0,Range_Visible_Dates=\"a\"),\", \" & TEXT(TableCareer[[#This Row],[Fecha Fin]],Range_Date_Format),\"\"),\"\")","v":"EJÉRCITO DE TIERRA"},{"$f":"IFERROR(INDEX(Range_PT_Career,TableCareer[[#This Row],[Fila]],C$2),0)","v":"1982-01-15"},{"$f":"IFERROR(TableCareer[[#This Row],[Fecha Fin]]-TableCareer[[#This Row],[Fecha Inicio]],0)","v":455},{"$f":"IFERROR(INDEX(Range_PT_Career,TableCareer[[#This Row],[Fila]],E$2),0)","v":"1983-04-15"},20]
[null,{"$f":"IFERROR(INDEX(Range_PT_Career,TableCareer[[#This Row],[Fila]],B$2) & IF(AND(TableCareer[[#This Row],[Fecha Inicio]]>0,Range_Visible_Dates=\"a\"),\", \" & TEXT(TableCareer[[#This Row],[Fecha Fin]],Range_Date_Format),\"\"),\"\")","v":"COSISA"},{"$f":"IFERROR(INDEX(Range_PT_Career,TableCareer[[#This Row],[Fila]],C$2),0)","v":"1981-07-01"},{"$f":"IFERROR(TableCareer[[#This Row],[Fecha Fin]]-TableCareer[[#This Row],[Fecha Inicio]],0)","v":183},{"$f":"IFERROR(INDEX(Range_PT_Career,TableCareer[[#This Row],[Fila]],E$2),0)","v":"1981-12-31"},21]
[null,{"$f":"IFERROR(INDEX(Range_PT_Career,TableCareer[[#This Row],[Fila]],B$2) & IF(AND(TableCareer[[#This Row],[Fecha Inicio]]>0,Range_Visible_Dates=\"a\"),\", \" & TEXT(TableCareer[[#This Row],[Fecha Fin]],Range_Date_Format),\"\"),\"\")","v":"COMPUTER INTERNATIONAL"},{"$f":"IFERROR(INDEX(Range_PT_Career,TableCareer[[#This Row],[Fila]],C$2),0)","v":"1981-01-01"},{"$f":"IFERROR(TableCareer[[#This Row],[Fecha Fin]]-TableCareer[[#This Row],[Fecha Inicio]],0)","v":180},{"$f":"IFERROR(INDEX(Range_PT_Career,TableCareer[[#This Row],[Fila]],E$2),0)","v":"1981-06-30"},22]
[null,{"$f":"IFERROR(INDEX(Range_PT_Career,TableCareer[[#This Row],[Fila]],B$2) & IF(AND(TableCareer[[#This Row],[Fecha Inicio]]>0,Range_Visible_Dates=\"a\"),\", \" & TEXT(TableCareer[[#This Row],[Fecha Fin]],Range_Date_Format),\"\"),\"\")","v":"ETSIIZ"},{"$f":"IFERROR(INDEX(Range_PT_Career,TableCareer[[#This Row],[Fila]],C$2),0)","v":"1981-01-01"},{"$f":"IFERROR(TableCareer[[#This Row],[Fecha Fin]]-TableCareer[[#This Row],[Fecha Inicio]],0)","v":364},{"$f":"IFERROR(INDEX(Range_PT_Career,TableCareer[[#This Row],[Fila]],E$2),0)","v":"1981-12-31"},23]
[null,{"$f":"IFERROR(INDEX(Range_PT_Career,TableCareer[[#This Row],[Fila]],B$2) & IF(AND(TableCareer[[#This Row],[Fecha Inicio]]>0,Range_Visible_Dates=\"a\"),\", \" & TEXT(TableCareer[[#This Row],[Fecha Fin]],Range_Date_Format),\"\"),\"\")","v":"UNIVERSIDAD-EMPRESA"},{"$f":"IFERROR(INDEX(Range_PT_Career,TableCareer[[#This Row],[Fila]],C$2),0)","v":"1980-09-01"},{"$f":"IFERROR(TableCareer[[#This Row],[Fecha Fin]]-TableCareer[[#This Row],[Fecha Inicio]],0)","v":121},{"$f":"IFERROR(INDEX(Range_PT_Career,TableCareer[[#This Row],[Fila]],E$2),0)","v":"1980-12-31"},24]
[null,{"$f":"IFERROR(INDEX(Range_PT_Career,TableCareer[[#This Row],[Fila]],B$2) & IF(AND(TableCareer[[#This Row],[Fecha Inicio]]>0,Range_Visible_Dates=\"a\"),\", \" & TEXT(TableCareer[[#This Row],[Fecha Fin]],Range_Date_Format),\"\"),\"\")","v":"CAMPSA"},{"$f":"IFERROR(INDEX(Range_PT_Career,TableCareer[[#This Row],[Fila]],C$2),0)","v":"1978-07-01"},{"$f":"IFERROR(TableCareer[[#This Row],[Fecha Fin]]-TableCareer[[#This Row],[Fecha Inicio]],0)","v":61},{"$f":"IFERROR(INDEX(Range_PT_Career,TableCareer[[#This Row],[Fila]],E$2),0)","v":"1978-08-31"},25]
[null,{"$f":"IFERROR(INDEX(Range_PT_Career,TableCareer[[#This Row],[Fila]],B$2) & IF(AND(TableCareer[[#This Row],[Fecha Inicio]]>0,Range_Visible_Dates=\"a\"),\", \" & TEXT(TableCareer[[#This Row],[Fecha Fin]],Range_Date_Format),\"\"),\"\")","v":"ETSIIZ"},{"$f":"IFERROR(INDEX(Range_PT_Career,TableCareer[[#This Row],[Fila]],C$2),0)","v":"1975-09-01"},{"$f":"IFERROR(TableCareer[[#This Row],[Fecha Fin]]-TableCareer[[#This Row],[Fecha Inicio]],0)","v":1764},{"$f":"IFERROR(INDEX(Range_PT_Career,TableCareer[[#This Row],[Fila]],E$2),0)","v":"1980-06-30"},26]
[null,{"$f":"IFERROR(INDEX(Range_PT_Career,TableCareer[[#This Row],[Fila]],B$2) & IF(AND(TableCareer[[#This Row],[Fecha Inicio]]>0,Range_Visible_Dates=\"a\"),\", \" & TEXT(TableCareer[[#This Row],[Fecha Fin]],Range_Date_Format),\"\"),\"\")","v":""},{"$f":"IFERROR(INDEX(Range_PT_Career,TableCareer[[#This Row],[Fila]],C$2),0)","v":"00:00:00"},{"$f":"IFERROR(TableCareer[[#This Row],[Fecha Fin]]-TableCareer[[#This Row],[Fecha Inicio]],0)","v":0},{"$f":"IFERROR(INDEX(Range_PT_Career,TableCareer[[#This Row],[Fila]],E$2),0)","v":"00:00:00"},27]
[null,{"$f":"IFERROR(INDEX(Range_PT_Career,TableCareer[[#This Row],[Fila]],B$2) & IF(AND(TableCareer[[#This Row],[Fecha Inicio]]>0,Range_Visible_Dates=\"a\"),\", \" & TEXT(TableCareer[[#This Row],[Fecha Fin]],Range_Date_Format),\"\"),\"\")","v":""},{"$f":"IFERROR(INDEX(Range_PT_Career,TableCareer[[#This Row],[Fila]],C$2),0)","v":"00:00:00"},{"$f":"IFERROR(TableCareer[[#This Row],[Fecha Fin]]-TableCareer[[#This Row],[Fecha Inicio]],0)","v":0},{"$f":"IFERROR(INDEX(Range_PT_Career,TableCareer[[#This Row],[Fila]],E$2),0)","v":"00:00:00"},28]
[null,{"$f":"IFERROR(INDEX(Range_PT_Career,TableCareer[[#This Row],[Fila]],B$2) & IF(AND(TableCareer[[#This Row],[Fecha Inicio]]>0,Range_Visible_Dates=\"a\"),\", \" & TEXT(TableCareer[[#This Row],[Fecha Fin]],Range_Date_Format),\"\"),\"\")","v":""},{"$f":"IFERROR(INDEX(Range_PT_Career,TableCareer[[#This Row],[Fila]],C$2),0)","v":"00:00:00"},{"$f":"IFERROR(TableCareer[[#This Row],[Fecha Fin]]-TableCareer[[#This Row],[Fecha Inicio]],0)","v":0},{"$f":"IFERROR(INDEX(Range_PT_Career,TableCareer[[#This Row],[Fila]],E$2),0)","v":"00:00:00"},29]
[null,{"$f":"IFERROR(INDEX(Range_PT_Career,TableCareer[[#This Row],[Fila]],B$2) & IF(AND(TableCareer[[#This Row],[Fecha Inicio]]>0,Range_Visible_Dates=\"a\"),\", \" & TEXT(TableCareer[[#This Row],[Fecha Fin]],Range_Date_Format),\"\"),\"\")","v":""},{"$f":"IFERROR(INDEX(Range_PT_Career,TableCareer[[#This Row],[Fila]],C$2),0)","v":"00:00:00"},{"$f":"IFERROR(TableCareer[[#This Row],[Fecha Fin]]-TableCareer[[#This Row],[Fecha Inicio]],0)","v":0},{"$f":"IFERROR(INDEX(Range_PT_Career,TableCareer[[#This Row],[Fila]],E$2),0)","v":"00:00:00"},30]
[null,{"$f":"IFERROR(INDEX(Range_PT_Career,TableCareer[[#This Row],[Fila]],B$2) & IF(AND(TableCareer[[#This Row],[Fecha Inicio]]>0,Range_Visible_Dates=\"a\"),\", \" & TEXT(TableCareer[[#This Row],[Fecha Fin]],Range_Date_Format),\"\"),\"\")","v":""},{"$f":"IFERROR(INDEX(Range_PT_Career,TableCareer[[#This Row],[Fila]],C$2),0)","v":"00:00:00"},{"$f":"IFERROR(TableCareer[[#This Row],[Fecha Fin]]-TableCareer[[#This Row],[Fecha Inicio]],0)","v":0},{"$f":"IFERROR(INDEX(Range_PT_Career,TableCareer[[#This Row],[Fila]],E$2),0)","v":"00:00:00"},31]
[null,{"$f":"IFERROR(INDEX(Range_PT_Career,TableCareer[[#This Row],[Fila]],B$2) & IF(AND(TableCareer[[#This Row],[Fecha Inicio]]>0,Range_Visible_Dates=\"a\"),\", \" & TEXT(TableCareer[[#This Row],[Fecha Fin]],Range_Date_Format),\"\"),\"\")","v":""},{"$f":"IFERROR(INDEX(Range_PT_Career,TableCareer[[#This Row],[Fila]],C$2),0)","v":"00:00:00"},{"$f":"IFERROR(TableCareer[[#This Row],[Fecha Fin]]-TableCareer[[#This Row],[Fecha Inicio]],0)","v":0},{"$f":"IFERROR(INDEX(Range_PT_Career,TableCareer[[#This Row],[Fila]],E$2),0)","v":"00:00:00"},32]
[null,{"$f":"IFERROR(INDEX(Range_PT_Career,TableCareer[[#This Row],[Fila]],B$2) & IF(AND(TableCareer[[#This Row],[Fecha Inicio]]>0,Range_Visible_Dates=\"a\"),\", \" & TEXT(TableCareer[[#This Row],[Fecha Fin]],Range_Date_Format),\"\"),\"\")","v":""},{"$f":"IFERROR(INDEX(Range_PT_Career,TableCareer[[#This Row],[Fila]],C$2),0)","v":"00:00:00"},{"$f":"IFERROR(TableCareer[[#This Row],[Fecha Fin]]-TableCareer[[#This Row],[Fecha Inicio]],0)","v":0},{"$f":"IFERROR(INDEX(Range_PT_Career,TableCareer[[#This Row],[Fila]],E$2),0)","v":"00:00:00"},33]
[null,{"$f":"IFERROR(INDEX(Range_PT_Career,TableCareer[[#This Row],[Fila]],B$2) & IF(AND(TableCareer[[#This Row],[Fecha Inicio]]>0,Range_Visible_Dates=\"a\"),\", \" & TEXT(TableCareer[[#This Row],[Fecha Fin]],Range_Date_Format),\"\"),\"\")","v":""},{"$f":"IFERROR(INDEX(Range_PT_Career,TableCareer[[#This Row],[Fila]],C$2),0)","v":"00:00:00"},{"$f":"IFERROR(TableCareer[[#This Row],[Fecha Fin]]-TableCareer[[#This Row],[Fecha Inicio]],0)","v":0},{"$f":"IFERROR(INDEX(Range_PT_Career,TableCareer[[#This Row],[Fila]],E$2),0)","v":"00:00:00"},{"$f":"F37+1","v":34}]
[null,{"$f":"IFERROR(INDEX(Range_PT_Career,TableCareer[[#This Row],[Fila]],B$2) & IF(AND(TableCareer[[#This Row],[Fecha Inicio]]>0,Range_Visible_Dates=\"a\"),\", \" & TEXT(TableCareer[[#This Row],[Fecha Fin]],Range_Date_Format),\"\"),\"\")","v":""},{"$f":"IFERROR(INDEX(Range_PT_Career,TableCareer[[#This Row],[Fila]],C$2),0)","v":"00:00:00"},{"$f":"IFERROR(TableCareer[[#This Row],[Fecha Fin]]-TableCareer[[#This Row],[Fecha Inicio]],0)","v":0},{"$f":"IFERROR(INDEX(Range_PT_Career,TableCareer[[#This Row],[Fila]],E$2),0)","v":"00:00:00"},35]
[null,{"$f":"IFERROR(INDEX(Range_PT_Career,TableCareer[[#This Row],[Fila]],B$2) & IF(AND(TableCareer[[#This Row],[Fecha Inicio]]>0,Range_Visible_Dates=\"a\"),\", \" & TEXT(TableCareer[[#This Row],[Fecha Fin]],Range_Date_Format),\"\"),\"\")","v":""},{"$f":"IFERROR(INDEX(Range_PT_Career,TableCareer[[#This Row],[Fila]],C$2),0)","v":"00:00:00"},{"$f":"IFERROR(TableCareer[[#This Row],[Fecha Fin]]-TableCareer[[#This Row],[Fecha Inicio]],0)","v":0},{"$f":"IFERROR(INDEX(Range_PT_Career,TableCareer[[#This Row],[Fila]],E$2),0)","v":"00:00:00"},36]
[null,{"$f":"IFERROR(INDEX(Range_PT_Career,TableCareer[[#This Row],[Fila]],B$2) & IF(AND(TableCareer[[#This Row],[Fecha Inicio]]>0,Range_Visible_Dates=\"a\"),\", \" & TEXT(TableCareer[[#This Row],[Fecha Fin]],Range_Date_Format),\"\"),\"\")","v":""},{"$f":"IFERROR(INDEX(Range_PT_Career,TableCareer[[#This Row],[Fila]],C$2),0)","v":"00:00:00"},{"$f":"IFERROR(TableCareer[[#This Row],[Fecha Fin]]-TableCareer[[#This Row],[Fecha Inicio]],0)","v":0},{"$f":"IFERROR(INDEX(Range_PT_Career,TableCareer[[#This Row],[Fila]],E$2),0)","v":"00:00:00"},37]
[null,{"$f":"IFERROR(INDEX(Range_PT_Career,TableCareer[[#This Row],[Fila]],B$2) & IF(AND(TableCareer[[#This Row],[Fecha Inicio]]>0,Range_Visible_Dates=\"a\"),\", \" & TEXT(TableCareer[[#This Row],[Fecha Fin]],Range_Date_Format),\"\"),\"\")","v":""},{"$f":"IFERROR(INDEX(Range_PT_Career,TableCareer[[#This Row],[Fila]],C$2),0)","v":"00:00:00"},{"$f":"IFERROR(TableCareer[[#This Row],[Fecha Fin]]-TableCareer[[#This Row],[Fecha Inicio]],0)","v":0},{"$f":"IFERROR(INDEX(Range_PT_Career,TableCareer[[#This Row],[Fila]],E$2),0)","v":"00:00:00"},38]
[null,{"$f":"IFERROR(INDEX(Range_PT_Career,TableCareer[[#This Row],[Fila]],B$2) & IF(AND(TableCareer[[#This Row],[Fecha Inicio]]>0,Range_Visible_Dates=\"a\"),\", \" & TEXT(TableCareer[[#This Row],[Fecha Fin]],Range_Date_Format),\"\"),\"\")","v":""},{"$f":"IFERROR(INDEX(Range_PT_Career,TableCareer[[#This Row],[Fila]],C$2),0)","v":"00:00:00"},{"$f":"IFERROR(TableCareer[[#This Row],[Fecha Fin]]-TableCareer[[#This Row],[Fecha Inicio]],0)","v":0},{"$f":"IFERROR(INDEX(Range_PT_Career,TableCareer[[#This Row],[Fila]],E$2),0)","v":"00:00:00"},39]
[null,{"$f":"IFERROR(INDEX(Range_PT_Career,TableCareer[[#This Row],[Fila]],B$2) & IF(AND(TableCareer[[#This Row],[Fecha Inicio]]>0,Range_Visible_Dates=\"a\"),\", \" & TEXT(TableCareer[[#This Row],[Fecha Fin]],Range_Date_Format),\"\"),\"\")","v":""},{"$f":"IFERROR(INDEX(Range_PT_Career,TableCareer[[#This Row],[Fila]],C$2),0)","v":"00:00:00"},{"$f":"IFERROR(TableCareer[[#This Row],[Fecha Fin]]-TableCareer[[#This Row],[Fecha Inicio]],0)","v":0},{"$f":"IFERROR(INDEX(Range_PT_Career,TableCareer[[#This Row],[Fila]],E$2),0)","v":"00:00:00"},40]
[null,{"$f":"IFERROR(INDEX(Range_PT_Career,TableCareer[[#This Row],[Fila]],B$2) & IF(AND(TableCareer[[#This Row],[Fecha Inicio]]>0,Range_Visible_Dates=\"a\"),\", \" & TEXT(TableCareer[[#This Row],[Fecha Fin]],Range_Date_Format),\"\"),\"\")","v":""},{"$f":"IFERROR(INDEX(Range_PT_Career,TableCareer[[#This Row],[Fila]],C$2),0)","v":"00:00:00"},{"$f":"IFERROR(TableCareer[[#This Row],[Fecha Fin]]-TableCareer[[#This Row],[Fecha Inicio]],0)","v":0},{"$f":"IFERROR(INDEX(Range_PT_Career,TableCareer[[#This Row],[Fila]],E$2),0)","v":"00:00:00"},41]
[null,{"$f":"IFERROR(INDEX(Range_PT_Career,TableCareer[[#This Row],[Fila]],B$2) & IF(AND(TableCareer[[#This Row],[Fecha Inicio]]>0,Range_Visible_Dates=\"a\"),\", \" & TEXT(TableCareer[[#This Row],[Fecha Fin]],Range_Date_Format),\"\"),\"\")","v":""},{"$f":"IFERROR(INDEX(Range_PT_Career,TableCareer[[#This Row],[Fila]],C$2),0)","v":"00:00:00"},{"$f":"IFERROR(TableCareer[[#This Row],[Fecha Fin]]-TableCareer[[#This Row],[Fecha Inicio]],0)","v":0},{"$f":"IFERROR(INDEX(Range_PT_Career,TableCareer[[#This Row],[Fila]],E$2),0)","v":"00:00:00"},42]
[null,{"$f":"IFERROR(INDEX(Range_PT_Career,TableCareer[[#This Row],[Fila]],B$2) & IF(AND(TableCareer[[#This Row],[Fecha Inicio]]>0,Range_Visible_Dates=\"a\"),\", \" & TEXT(TableCareer[[#This Row],[Fecha Fin]],Range_Date_Format),\"\"),\"\")","v":""},{"$f":"IFERROR(INDEX(Range_PT_Career,TableCareer[[#This Row],[Fila]],C$2),0)","v":"00:00:00"},{"$f":"IFERROR(TableCareer[[#This Row],[Fecha Fin]]-TableCareer[[#This Row],[Fecha Inicio]],0)","v":0},{"$f":"IFERROR(INDEX(Range_PT_Career,TableCareer[[#This Row],[Fila]],E$2),0)","v":"00:00:00"},43]
[null,{"$f":"IFERROR(INDEX(Range_PT_Career,TableCareer[[#This Row],[Fila]],B$2) & IF(AND(TableCareer[[#This Row],[Fecha Inicio]]>0,Range_Visible_Dates=\"a\"),\", \" & TEXT(TableCareer[[#This Row],[Fecha Fin]],Range_Date_Format),\"\"),\"\")","v":""},{"$f":"IFERROR(INDEX(Range_PT_Career,TableCareer[[#This Row],[Fila]],C$2),0)","v":"00:00:00"},{"$f":"IFERROR(TableCareer[[#This Row],[Fecha Fin]]-TableCareer[[#This Row],[Fecha Inicio]],0)","v":0},{"$f":"IFERROR(INDEX(Range_PT_Career,TableCareer[[#This Row],[Fila]],E$2),0)","v":"00:00:00"},44]
[null,{"$f":"IFERROR(INDEX(Range_PT_Career,TableCareer[[#This Row],[Fila]],B$2) & IF(AND(TableCareer[[#This Row],[Fecha Inicio]]>0,Range_Visible_Dates=\"a\"),\", \" & TEXT(TableCareer[[#This Row],[Fecha Fin]],Range_Date_Format),\"\"),\"\")","v":""},{"$f":"IFERROR(INDEX(Range_PT_Career,TableCareer[[#This Row],[Fila]],C$2),0)","v":"00:00:00"},{"$f":"IFERROR(TableCareer[[#This Row],[Fecha Fin]]-TableCareer[[#This Row],[Fecha Inicio]],0)","v":0},{"$f":"IFERROR(INDEX(Range_PT_Career,TableCareer[[#This Row],[Fila]],E$2),0)","v":"00:00:00"},45]
[null,{"$f":"IFERROR(INDEX(Range_PT_Career,TableCareer[[#This Row],[Fila]],B$2) & IF(AND(TableCareer[[#This Row],[Fecha Inicio]]>0,Range_Visible_Dates=\"a\"),\", \" & TEXT(TableCareer[[#This Row],[Fecha Fin]],Range_Date_Format),\"\"),\"\")","v":""},{"$f":"IFERROR(INDEX(Range_PT_Career,TableCareer[[#This Row],[Fila]],C$2),0)","v":"00:00:00"},{"$f":"IFERROR(TableCareer[[#This Row],[Fecha Fin]]-TableCareer[[#This Row],[Fecha Inicio]],0)","v":0},{"$f":"IFERROR(INDEX(Range_PT_Career,TableCareer[[#This Row],[Fila]],E$2),0)","v":"00:00:00"},46]
[null,{"$f":"IFERROR(INDEX(Range_PT_Career,TableCareer[[#This Row],[Fila]],B$2) & IF(AND(TableCareer[[#This Row],[Fecha Inicio]]>0,Range_Visible_Dates=\"a\"),\", \" & TEXT(TableCareer[[#This Row],[Fecha Fin]],Range_Date_Format),\"\"),\"\")","v":""},{"$f":"IFERROR(INDEX(Range_PT_Career,TableCareer[[#This Row],[Fila]],C$2),0)","v":"00:00:00"},{"$f":"IFERROR(TableCareer[[#This Row],[Fecha Fin]]-TableCareer[[#This Row],[Fecha Inicio]],0)","v":0},{"$f":"IFERROR(INDEX(Range_PT_Career,TableCareer[[#This Row],[Fila]],E$2),0)","v":"00:00:00"},47]
[null,{"$f":"IFERROR(INDEX(Range_PT_Career,TableCareer[[#This Row],[Fila]],B$2) & IF(AND(TableCareer[[#This Row],[Fecha Inicio]]>0,Range_Visible_Dates=\"a\"),\", \" & TEXT(TableCareer[[#This Row],[Fecha Fin]],Range_Date_Format),\"\"),\"\")","v":""},{"$f":"IFERROR(INDEX(Range_PT_Career,TableCareer[[#This Row],[Fila]],C$2),0)","v":"00:00:00"},{"$f":"IFERROR(TableCareer[[#This Row],[Fecha Fin]]-TableCareer[[#This Row],[Fecha Inicio]],0)","v":0},{"$f":"IFERROR(INDEX(Range_PT_Career,TableCareer[[#This Row],[Fila]],E$2),0)","v":"00:00:00"},48]
[null,{"$f":"IFERROR(INDEX(Range_PT_Career,TableCareer[[#This Row],[Fila]],B$2) & IF(AND(TableCareer[[#This Row],[Fecha Inicio]]>0,Range_Visible_Dates=\"a\"),\", \" & TEXT(TableCareer[[#This Row],[Fecha Fin]],Range_Date_Format),\"\"),\"\")","v":""},{"$f":"IFERROR(INDEX(Range_PT_Career,TableCareer[[#This Row],[Fila]],C$2),0)","v":"00:00:00"},{"$f":"IFERROR(TableCareer[[#This Row],[Fecha Fin]]-TableCareer[[#This Row],[Fecha Inicio]],0)","v":0},{"$f":"IFERROR(INDEX(Range_PT_Career,TableCareer[[#This Row],[Fila]],E$2),0)","v":"00:00:00"},49]
[null,{"$f":"IFERROR(INDEX(Range_PT_Career,TableCareer[[#This Row],[Fila]],B$2) & IF(AND(TableCareer[[#This Row],[Fecha Inicio]]>0,Range_Visible_Dates=\"a\"),\", \" & TEXT(TableCareer[[#This Row],[Fecha Fin]],Range_Date_Format),\"\"),\"\")","v":""},{"$f":"IFERROR(INDEX(Range_PT_Career,TableCareer[[#This Row],[Fila]],C$2),0)","v":"00:00:00"},{"$f":"IFERROR(TableCareer[[#This Row],[Fecha Fin]]-TableCareer[[#This Row],[Fecha Inicio]],0)","v":0},{"$f":"IFERROR(INDEX(Range_PT_Career,TableCareer[[#This Row],[Fila]],E$2),0)","v":"00:00:00"},50]

{"sheet":"TD_CARRERA","index":2,"n_rows":30,"n_cols":17,"rows_kept":30,"cut":false,"hidden":false,"merged":[]}
[]
[null,"Campos","Empresa"]
[]
[null,null,"Campos",null,"Fecha Inicio","Fecha Fin","Año Inicio","Año Fin","Empresa","Sector","Actividad","Cliente","Lugar","Puesto","Tareas","Herramientas","Logros"]
[null,null,{"$f":"INDEX(TableDatCareer[[#Headers],[Empresa]:[Año Fin]],ROW()-4)","v":"Empresa"},null,"2019-08-26","2020-05-20",2019,2020,"IBM","TIC","CPD","BBVA","Teletrabajo","Analista de datos","Controller & Reporting","Excel","Controller & Reporting"]
[null,null,{"$f":"INDEX(TableDatCareer[[#Headers],[Empresa]:[Año Fin]],ROW()-4)","v":"Sector"},null,"2018-06-27","2019-08-25",2018,2019,"IBM","TIC","CPD","BBVA","Tres Cantos","Analista de datos","Controller & Reporting","Excel","Controller & Reporting"]
[null,null,{"$f":"INDEX(TableDatCareer[[#Headers],[Empresa]:[Año Fin]],ROW()-4)","v":"Actividad"},null,"2015-03-09","2018-06-19",2015,2018,"INDRA SISTEMAS","TIC","Desarrollo Aplicaciones","Gas Natural Fenosa","Madrid","Analista de datos","Controller & Reporting","Excel","Controller & Reporting"]
[null,null,{"$f":"INDEX(TableDatCareer[[#Headers],[Empresa]:[Año Fin]],ROW()-4)","v":"Cliente"},null,"2015-03-09","2020-07-17",2015,2020,"EXPERIS","Consultoría","SPT","Indra, IBM","Madrid","Analista de datos","Analista-Programador","Excel","Consultor analista de datos"]
[null,null,{"$f":"INDEX(TableDatCareer[[#Headers],[Empresa]:[Año Fin]],ROW()-4)","v":"Lugar"},null,"2015-01-01","2015-03-08",2015,2015,"ACADEMIA ADAMS","TIC","Cert. Sistemas Informáticos ","Formación","Zaragoza","Prof. Sistemas Informáticos ","Formación","Arduino y Excel","Cert. Sistemas Informáticos "]
[null,null,{"$f":"INDEX(TableDatCareer[[#Headers],[Empresa]:[Año Fin]],ROW()-4)","v":"Puesto"},null,"2013-09-30","2014-10-20",2013,2014,"ALTEN","TIC","Desarrollo Aplicaciones","Gas Natural Fenosa","Madrid","Analista de datos","Analista-Programador","Excel","Gestión Incidencias GNF"]
[null,null,{"$f":"INDEX(TableDatCareer[[#Headers],[Empresa]:[Año Fin]],ROW()-4)","v":"Tareas"},null,"2013-03-19","2013-05-31",2013,2013,"EVERIS","TIC","Desarrollo Aplicaciones","Gas Natural Fenosa","Madrid","Analista-Programador","Analista-Programador","Power Builder y Excel","Sistema Gestión Comercial"]
[null,null,{"$f":"INDEX(TableDatCareer[[#Headers],[Empresa]:[Año Fin]],ROW()-4)","v":"Herramientas"},null,"2011-07-01","2013-02-08",2011,2013,"INDRA SOFTWARE LABS","TIC","Desarrollo Aplicaciones","Gas Natural Fenosa","Madrid","Analista-Programador","Analista-Programador","Power Builder y Excel","Sistema Gestión Comercial"]
[null,null,{"$f":"INDEX(TableDatCareer[[#Headers],[Empresa]:[Año Fin]],ROW()-4)","v":"Logros"},null,"2011-07-01","2013-06-06",2011,2013,"IBERTECH","Consultoría","SPT","Indra, Everis","Madrid","Analista-Programador","Analista-Programador","Power Builder y Excel","Sistema Gestión Comercial"]
[null,null,null,null,"2010-10-01","2010-11-30",2010,2010,"ACADEMIA SINDICAL","Empresas","Curso Admón. Empresas","Formación","Zaragoza","Adjunto a la Dirección","Formación","Formación en Excel","Adjunto a la Dirección"]
[null,null,null,null,"2010-03-09","2021-10-31",2010,2021,"MI PROPIO BLOG DE EXCEL","TIC","Publicaciones en el blog","Pedro Wave for Excel Guys","Mundo","Autor blog de Excel","Teleformación autodidacta","Excel; VBA; Power BI",">100 artículos en el blog"]
[null,null,null,null,"2009-05-19","2010-03-05",2009,2010,"RADE TECNOLOGIAS","Defensa","I+D","Ejército, Policia, Guardia Civil","Polígono Plaza","Ingeniero Industrial","Control de Calidad I+D","Especificaciones Técnicas","Subvenciones y patentes"]
[null,null,null,null,"2009-01-02","2009-02-03",2009,2009,"SDS","TIC","Papelera","SAICA","Zaragoza","Ingeniero Industrial","Solución Desarrollo Software","Base de datos DB2","Alergia cutánea"]
[null,null,null,null,"2008-09-01","2009-03-31",2008,2009,"ACADEMIA ADAMS","TIC","Curso Analista-Programador","Formación","Zaragoza","Analista-Programador","Formación","Formación","Analista-Programador"]
[null,null,null,null,"1997-01-01","2008-02-26",1997,2008,"SIEMENS ELASA","Telecomunicaciones","I+D","Compañías Telefónicas","Polígono Malpica","Ingeniero de Sistemas","APP Cliente-Servidor","Power Builder BBDD Oracle","Sistema teléfonos públicos"]
[null,null,null,null,"1987-01-01","1996-12-31",1987,1996,"AMPER ELASA","Telecomunicaciones","I+D","Compañías Telefónicas","Polígono Malpica","Ingeniero TIC","Diseño electrónico","Electrónica µcontroladores","Diseño telecomunicaciones"]
[null,null,null,null,"1984-12-26","1986-12-31",1984,1986,"ELECTRÓNICA ARAGONESA","Telecomunicaciones","I+D","Telefónica","Polígono Malpica","Ingeniero Electrónico","Diseño electrónico","Electrónica µcontroladores","1ª gen. teléf. público digital"]
[null,null,null,null,"1983-06-13","1984-12-22",1983,1984,"SFS","TIC","I+D","Butano, REPSOL","Zaragoza","Ingeniero Electrónico","Diseño electrónico","Electrónica µcontroladores","Básculas camiones y butano"]
[null,null,null,null,"1983-05-01","1983-06-01",1983,1983,"CATRASTO DE ZARAGOZA","Ayuntamiento","Catastro","Ayto. Zaragoza","Zaragoza","Ingeniero Industrial","Planos de pisos y locales","Planos y un metro","Confeccionar el catastro"]
[null,null,null,null,"1982-01-15","1983-04-15",1982,1983,"EJÉRCITO DE TIERRA","Defensa","Selección CIR","Ejército","Tenerife","Servicio Militar Obligatorio","Listas destinos en Canarias","Máquina escribir mecánica","Licencia cartilla militar"]
[null,null,null,null,"1981-07-01","1981-12-31",1981,1981,"COSISA","TIC","Asistencia Técnica","Leche Pascual","Zaragoza","Ingeniero Industrial","Instalar y mantener TIC","Vehículo de empresa","Crear Serv. Asistencia Téc."]
[null,null,null,null,"1981-01-01","1981-06-30",1981,1981,"COMPUTER INTERNATIONAL","TIC","Ventas","Rusia","Zaragoza","Ingeniero Industrial","Programación","Lenguaje RPG","Comercializar ordenadores"]
[null,null,null,null,"1981-01-01","1981-12-31",1981,1981,"ETSIIZ","Ingenieros Industriales","Proyecto Fin de Carrera","Universidad de Zaragoza","Zaragoza","Ingeniero Eléctrico","Prototipo smart terminal","Electrónica µcontroladores","Sobresaliente"]
[null,null,null,null,"1980-09-01","1980-12-31",1980,1980,"UNIVERSIDAD-EMPRESA","Línea Blanca","I+D","Balay","Zaragoza","Becario","Diseño electrónico","Electrónica µcontroladores","1ª gen. cocina inducción"]
[null,null,null,null,"1978-07-01","1978-08-31",1978,1978,"CAMPSA","Energías","Seguridad","Universidad de Zaragoza","Monzalbarba","Becario","Seguridad industrial","Normas de Seguridad","Aprendizaje industrial"]
[null,null,null,null,"1975-09-01","1980-06-30",1975,1980,"ETSIIZ","Ingenieros Industriales","Formación","Universidad de Zaragoza","Zaragoza","Ingeniero Eléctrico","Estudios de ingeniería","Estudiante","Sobresaliente"]

{"sheet":"DAT_CARRERA","index":3,"n_rows":27,"n_cols":13,"rows_kept":27,"cut":false,"hidden":false,"merged":[]}
["Fecha Inicial","Fecha Final","Empresa","Sector","Actividad","Cliente","Lugar","Puesto","Tareas","Herramientas","Logros","Año Inicio","Año Fin"]
["1975-09-01","1980-06-30","ETSIIZ","Ingenieros Industriales","Formación","Universidad de Zaragoza","Zaragoza","Ingeniero Eléctrico","Estudios de ingeniería","Estudiante","Sobresaliente",{"$f":"YEAR(TableDatCareer[[#This Row],[Fecha Inicial]])","v":1975},{"$f":"YEAR(TableDatCareer[[#This Row],[Fecha Final]])","v":1980}]
["1978-07-01","1978-08-31","CAMPSA","Energías","Seguridad","Universidad de Zaragoza","Monzalbarba","Becario","Seguridad industrial","Normas de Seguridad","Aprendizaje industrial",{"$f":"YEAR(TableDatCareer[[#This Row],[Fecha Inicial]])","v":1978},{"$f":"YEAR(TableDatCareer[[#This Row],[Fecha Final]])","v":1978}]
["1980-09-01","1980-12-31","UNIVERSIDAD-EMPRESA","Línea Blanca","I+D","Balay","Zaragoza","Becario","Diseño electrónico","Electrónica µcontroladores","1ª gen. cocina inducción",{"$f":"YEAR(TableDatCareer[[#This Row],[Fecha Inicial]])","v":1980},{"$f":"YEAR(TableDatCareer[[#This Row],[Fecha Final]])","v":1980}]
["1981-01-01","1981-12-31","ETSIIZ","Ingenieros Industriales","Proyecto Fin de Carrera","Universidad de Zaragoza","Zaragoza","Ingeniero Eléctrico","Prototipo smart terminal","Electrónica µcontroladores","Sobresaliente",{"$f":"YEAR(TableDatCareer[[#This Row],[Fecha Inicial]])","v":1981},{"$f":"YEAR(TableDatCareer[[#This Row],[Fecha Final]])","v":1981}]
["1981-01-01","1981-06-30","COMPUTER INTERNATIONAL","TIC","Ventas","Rusia","Zaragoza","Ingeniero Industrial","Programación","Lenguaje RPG","Comercializar ordenadores",{"$f":"YEAR(TableDatCareer[[#This Row],[Fecha Inicial]])","v":1981},{"$f":"YEAR(TableDatCareer[[#This Row],[Fecha Final]])","v":1981}]
["1981-07-01","1981-12-31","COSISA","TIC","Asistencia Técnica","Leche Pascual","Zaragoza","Ingeniero Industrial","Instalar y mantener TIC","Vehículo de empresa","Crear Serv. Asistencia Téc.",{"$f":"YEAR(TableDatCareer[[#This Row],[Fecha Inicial]])","v":1981},{"$f":"YEAR(TableDatCareer[[#This Row],[Fecha Final]])","v":1981}]
["1982-01-15","1983-04-15","EJÉRCITO DE TIERRA","Defensa","Selección CIR","Ejército","Tenerife","Servicio Militar Obligatorio","Listas destinos en Canarias","Máquina escribir mecánica","Licencia cartilla militar",{"$f":"YEAR(TableDatCareer[[#This Row],[Fecha Inicial]])","v":1982},{"$f":"YEAR(TableDatCareer[[#This Row],[Fecha Final]])","v":1983}]
["1983-05-01","1983-06-01","CATRASTO DE ZARAGOZA","Ayuntamiento","Catastro","Ayto. Zaragoza","Zaragoza","Ingeniero Industrial","Planos de pisos y locales","Planos y un metro","Confeccionar el catastro",{"$f":"YEAR(TableDatCareer[[#This Row],[Fecha Inicial]])","v":1983},{"$f":"YEAR(TableDatCareer[[#This Row],[Fecha Final]])","v":1983}]
["1983-06-13","1984-12-22","SFS","TIC","I+D","Butano, REPSOL","Zaragoza","Ingeniero Electrónico","Diseño electrónico","Electrónica µcontroladores","Básculas camiones y butano",{"$f":"YEAR(TableDatCareer[[#This Row],[Fecha Inicial]])","v":1983},{"$f":"YEAR(TableDatCareer[[#This Row],[Fecha Final]])","v":1984}]
["1984-12-26","1986-12-31","ELECTRÓNICA ARAGONESA","Telecomunicaciones","I+D","Telefónica","Polígono Malpica","Ingeniero Electrónico","Diseño electrónico","Electrónica µcontroladores","1ª gen. teléf. público digital",{"$f":"YEAR(TableDatCareer[[#This Row],[Fecha Inicial]])","v":1984},{"$f":"YEAR(TableDatCareer[[#This Row],[Fecha Final]])","v":1986}]
["1987-01-01","1996-12-31","AMPER ELASA","Telecomunicaciones","I+D","Compañías Telefónicas","Polígono Malpica","Ingeniero TIC","Diseño electrónico","Electrónica µcontroladores","Diseño telecomunicaciones",{"$f":"YEAR(TableDatCareer[[#This Row],[Fecha Inicial]])","v":1987},{"$f":"YEAR(TableDatCareer[[#This Row],[Fecha Final]])","v":1996}]
["1997-01-01","2008-02-26","SIEMENS ELASA","Telecomunicaciones","I+D","Compañías Telefónicas","Polígono Malpica","Ingeniero de Sistemas","APP Cliente-Servidor","Power Builder BBDD Oracle","Sistema teléfonos públicos",{"$f":"YEAR(TableDatCareer[[#This Row],[Fecha Inicial]])","v":1997},{"$f":"YEAR(TableDatCareer[[#This Row],[Fecha Final]])","v":2008}]
["2008-09-01","2009-03-31","ACADEMIA ADAMS","TIC","Curso Analista-Programador","Formación","Zaragoza","Analista-Programador","Formación","Formación","Analista-Programador",{"$f":"YEAR(TableDatCareer[[#This Row],[Fecha Inicial]])","v":2008},{"$f":"YEAR(TableDatCareer[[#This Row],[Fecha Final]])","v":2009}]
["2009-01-02","2009-02-03","SDS","TIC","Papelera","SAICA","Zaragoza","Ingeniero Industrial","Solución Desarrollo Software","Base de datos DB2","Alergia cutánea",{"$f":"YEAR(TableDatCareer[[#This Row],[Fecha Inicial]])","v":2009},{"$f":"YEAR(TableDatCareer[[#This Row],[Fecha Final]])","v":2009}]
["2009-05-19","2010-03-05","RADE TECNOLOGIAS","Defensa","I+D","Ejército, Policia, Guardia Civil","Polígono Plaza","Ingeniero Industrial","Control de Calidad I+D","Especificaciones Técnicas","Subvenciones y patentes",{"$f":"YEAR(TableDatCareer[[#This Row],[Fecha Inicial]])","v":2009},{"$f":"YEAR(TableDatCareer[[#This Row],[Fecha Final]])","v":2010}]
["2010-03-09",{"$f":"TODAY()","v":"2021-10-31"},"MI PROPIO BLOG DE EXCEL","TIC","Publicaciones en el blog","Pedro Wave for Excel Guys","Mundo","Autor blog de Excel","Teleformación autodidacta","Excel; VBA; Power BI",">100 artículos en el blog",{"$f":"YEAR(TableDatCareer[[#This Row],[Fecha Inicial]])","v":2010},{"$f":"YEAR(TableDatCareer[[#This Row],[Fecha Final]])","v":2021}]
["2010-10-01","2010-11-30","ACADEMIA SINDICAL","Empresas","Curso Admón. Empresas","Formación","Zaragoza","Adjunto a la Dirección","Formación","Formación en Excel","Adjunto a la Dirección",{"$f":"YEAR(TableDatCareer[[#This Row],[Fecha Inicial]])","v":2010},{"$f":"YEAR(TableDatCareer[[#This Row],[Fecha Final]])","v":2010}]
["2011-07-01","2013-06-06","IBERTECH","Consultoría","SPT","Indra, Everis","Madrid","Analista-Programador","Analista-Programador","Power Builder y Excel","Sistema Gestión Comercial",{"$f":"YEAR(TableDatCareer[[#This Row],[Fecha Inicial]])","v":2011},{"$f":"YEAR(TableDatCareer[[#This Row],[Fecha Final]])","v":2013}]
["2011-07-01","2013-02-08","INDRA SOFTWARE LABS","TIC","Desarrollo Aplicaciones","Gas Natural Fenosa","Madrid","Analista-Programador","Analista-Programador","Power Builder y Excel","Sistema Gestión Comercial",{"$f":"YEAR(TableDatCareer[[#This Row],[Fecha Inicial]])","v":2011},{"$f":"YEAR(TableDatCareer[[#This Row],[Fecha Final]])","v":2013}]
["2013-03-19","2013-05-31","EVERIS","TIC","Desarrollo Aplicaciones","Gas Natural Fenosa","Madrid","Analista-Programador","Analista-Programador","Power Builder y Excel","Sistema Gestión Comercial",{"$f":"YEAR(TableDatCareer[[#This Row],[Fecha Inicial]])","v":2013},{"$f":"YEAR(TableDatCareer[[#This Row],[Fecha Final]])","v":2013}]
["2013-09-30","2014-10-20","ALTEN","TIC","Desarrollo Aplicaciones","Gas Natural Fenosa","Madrid","Analista de datos","Analista-Programador","Excel","Gestión Incidencias GNF",{"$f":"YEAR(TableDatCareer[[#This Row],[Fecha Inicial]])","v":2013},{"$f":"YEAR(TableDatCareer[[#This Row],[Fecha Final]])","v":2014}]
["2015-01-01","2015-03-08","ACADEMIA ADAMS","TIC","Cert. Sistemas Informáticos ","Formación","Zaragoza","Prof. Sistemas Informáticos ","Formación","Arduino y Excel","Cert. Sistemas Informáticos ",{"$f":"YEAR(TableDatCareer[[#This Row],[Fecha Inicial]])","v":2015},{"$f":"YEAR(TableDatCareer[[#This Row],[Fecha Final]])","v":2015}]
["2015-03-09","2020-07-17","EXPERIS","Consultoría","SPT","Indra, IBM","Madrid","Analista de datos","Analista-Programador","Excel","Consultor analista de datos",{"$f":"YEAR(TableDatCareer[[#This Row],[Fecha Inicial]])","v":2015},{"$f":"YEAR(TableDatCareer[[#This Row],[Fecha Final]])","v":2020}]
["2015-03-09","2018-06-19","INDRA SISTEMAS","TIC","Desarrollo Aplicaciones","Gas Natural Fenosa","Madrid","Analista de datos","Controller & Reporting","Excel","Controller & Reporting",{"$f":"YEAR(TableDatCareer[[#This Row],[Fecha Inicial]])","v":2015},{"$f":"YEAR(TableDatCareer[[#This Row],[Fecha Final]])","v":2018}]
["2018-06-27","2019-08-25","IBM","TIC","CPD","BBVA","Tres Cantos","Analista de datos","Controller & Reporting","Excel","Controller & Reporting",{"$f":"YEAR(TableDatCareer[[#This Row],[Fecha Inicial]])","v":2018},{"$f":"YEAR(TableDatCareer[[#This Row],[Fecha Final]])","v":2019}]
["2019-08-26","2020-05-20","IBM","TIC","CPD","BBVA","Teletrabajo","Analista de datos","Controller & Reporting","Excel","Controller & Reporting",{"$f":"YEAR(TableDatCareer[[#This Row],[Fecha Inicial]])","v":2019},{"$f":"YEAR(TableDatCareer[[#This Row],[Fecha Final]])","v":2020}]